[Event "*** Titled Tuesday Blitz"]
[Site "Chess.com"]
[Date "2020.05.19"]
[Round "4"]
[White "TigrVShlyape"]
[Black "jonaszmb"]
[Result "1-0"]
[WhiteElo "2810"]
[BlackElo "2516"]
[TimeControl "180+1"]
[EndTime "12:41:11 PDT"]
[Termination "TigrVShlyape won on time"]

1. d4 {[%clk 0:03:00.9]} 1... d5 {[%clk 0:03:00.1]} 2. Nf3 {[%clk 0:02:59.8]}
2... Nf6 {[%clk 0:03:00.1]} 3. Bf4 {[%clk 0:03:00]} 3... e6 {[%clk 0:03:00.4]}
4. e3 {[%clk 0:02:59.6]} 4... c5 {[%clk 0:03:00.5]} 5. Nbd2 {[%clk 0:02:57.9]}
5... Nc6 {[%clk 0:03:00.6]} 6. c3 {[%clk 0:02:58]} 6... cxd4 {[%clk 0:03:01]} 7.
exd4 {[%clk 0:02:57.8]} 7... Nh5 {[%clk 0:03:01.6]} 8. Bg3 {[%clk 0:02:56.9]}
8... g6 {[%clk 0:02:59.5]} 9. Bd3 {[%clk 0:02:42.2]} 9... Nxg3 {[%clk
0:02:58.9]} 10. hxg3 {[%clk 0:02:41.7]} 10... Bg7 {[%clk 0:02:59.6]} 11. O-O
{[%clk 0:02:41.1]} 11... Bd7 {[%clk 0:02:56.3]} 12. Re1 {[%clk 0:02:38.4]} 12...
Qc7 {[%clk 0:02:55.3]} 13. Qe2 {[%clk 0:02:37]} 13... f6 {[%clk 0:02:20.7]} 14.
c4 {[%clk 0:02:28.9]} 14... dxc4 {[%clk 0:02:18]} 15. Bxc4 {[%clk 0:02:28.2]}
15... Nd8 {[%clk 0:02:04.2]} 16. Rac1 {[%clk 0:02:11.6]} 16... Qb6 {[%clk
0:01:53.7]} 17. Bxe6 {[%clk 0:02:04.3]} 17... Nxe6 {[%clk 0:01:34.2]} 18. d5
{[%clk 0:02:03.8]} 18... O-O {[%clk 0:01:12.6]} 19. Nc4 {[%clk 0:02:02.1]} 19...
Nd4 {[%clk 0:01:04.4]} 20. Qe7 {[%clk 0:01:52.1]} 20... Nxf3+ {[%clk 0:00:59.7]}
21. gxf3 {[%clk 0:01:50.3]} 21... Qd8 {[%clk 0:00:59.4]} 22. Nd6 {[%clk
0:01:41.2]} 22... Qxe7 {[%clk 0:00:23.1]} 23. Rxe7 {[%clk 0:01:39.1]} 23... Rfd8
{[%clk 0:00:18.8]} 24. Rc7 {[%clk 0:01:18.7]} 24... Bf8 {[%clk 0:00:18.9]} 25.
Rexd7 {[%clk 0:01:18.9]} 25... Bxd6 {[%clk 0:00:19.1]} 26. Rxb7 {[%clk
0:01:19.2]} 26... Rxd7 {[%clk 0:00:17.5]} 27. Rxd7 {[%clk 0:01:19.3]} 27... Be5
{[%clk 0:00:17]} 28. b3 {[%clk 0:01:16.4]} 28... a5 {[%clk 0:00:16.6]} 29. f4
{[%clk 0:01:16.2]} 29... Bd4 {[%clk 0:00:13.7]} 30. Kf1 {[%clk 0:01:02.1]} 30...
a4 {[%clk 0:00:12.4]} 31. b4 {[%clk 0:00:52.4]} 31... a3 {[%clk 0:00:09.8]} 32.
d6 {[%clk 0:00:52.5]} 32... Bc3 {[%clk 0:00:08.1]} 33. b5 {[%clk 0:00:48.9]}
33... Bb4 {[%clk 0:00:06.4]} 34. b6 {[%clk 0:00:47.3]} 34... Rb8 {[%clk
0:00:05.4]} 35. b7 {[%clk 0:00:46.6]} 35... Kf8 {[%clk 0:00:03.8]} 36. Rxh7
{[%clk 0:00:29.2]} 36... Bxd6 {[%clk 0:00:03.4]} 37. Rd7 {[%clk 0:00:29.1]}
37... Bc5 {[%clk 0:00:01.6]} 38. Rc7 {[%clk 0:00:29.1]} 38... Bd6 {[%clk
0:00:02]} 39. Rd7 {[%clk 0:00:28.4]} 39... Bc5 {[%clk 0:00:02.4]} 40. Rc7 {[%clk
0:00:19.9]} 40... Ba7 {[%clk 0:00:02.5]} 41. Ke2 {[%clk 0:00:19]} 41... Ke8
{[%clk 0:00:03.1]} 42. Rg7 {[%clk 0:00:17.6]} 42... Kd8 {[%clk 0:00:02.8]} 43.
g4 {[%clk 0:00:15.9]} 43... Bd4 {[%clk 0:00:02]} 44. Kd3 {[%clk 0:00:15.1]}
44... Bb2 {[%clk 0:00:01.8]} 45. Kc4 {[%clk 0:00:14.8]} 45... f5 {[%clk
0:00:02.3]} 46. Rf7 {[%clk 0:00:14.8]} 46... fxg4 {[%clk 0:00:01.8]} 47. Kd5
{[%clk 0:00:14.9]} 47... Bc3 {[%clk 0:00:01.5]} 48. Kc6 {[%clk 0:00:14.3]} 48...
Bd4 {[%clk 0:00:01.1]} 49. Rd7+ {[%clk 0:00:13.4]} 49... Ke8 {[%clk 0:00:01.2]}
50. Rxd4 {[%clk 0:00:14.3]} 1-0

[Event "*** Titled Tuesday Blitz"]
[Site "Chess.com"]
[Date "2020.05.19"]
[Round "4"]
[White "Quaternitychess"]
[Black "bazar-wokzal"]
[Result "1-0"]
[WhiteElo "2799"]
[BlackElo "2516"]
[TimeControl "180+1"]
[EndTime "12:41:12 PDT"]
[Termination "Quaternitychess won on time"]

1. e4 {[%clk 0:03:00.9]} 1... Nc6 {[%clk 0:02:59.3]} 2. Nc3 {[%clk 0:02:58.5]}
2... Nf6 {[%clk 0:02:58.6]} 3. f4 {[%clk 0:02:56.4]} 3... d5 {[%clk 0:02:58.2]}
4. e5 {[%clk 0:02:55.6]} 4... d4 {[%clk 0:02:58.4]} 5. Nce2 {[%clk 0:02:41.2]}
5... Nd5 {[%clk 0:02:50.1]} 6. Nf3 {[%clk 0:02:40.5]} 6... Bg4 {[%clk
0:02:48.5]} 7. e6 {[%clk 0:02:27.9]} 7... Bxf3 {[%clk 0:02:40.4]} 8. gxf3 {[%clk
0:02:22.9]} 8... d3 {[%clk 0:02:36.6]} 9. cxd3 {[%clk 0:02:21.3]} 9... fxe6
{[%clk 0:02:30.6]} 10. Bh3 {[%clk 0:02:20.1]} 10... Qd6 {[%clk 0:02:27.7]} 11.
Qa4 {[%clk 0:02:13]} 11... O-O-O {[%clk 0:02:22.4]} 12. Qe4 {[%clk 0:02:12.8]}
12... Kb8 {[%clk 0:02:17.8]} 13. a3 {[%clk 0:02:12.2]} 13... e5 {[%clk 0:02:11]}
14. b4 {[%clk 0:01:58.4]} 14... exf4 {[%clk 0:01:53.5]} 15. Bb2 {[%clk
0:01:57.1]} 15... e5 {[%clk 0:01:50.9]} 16. b5 {[%clk 0:01:47]} 16... Nf6 {[%clk
0:01:49.2]} 17. Qc4 {[%clk 0:01:37.3]} 17... Ne7 {[%clk 0:01:32.6]} 18. Rc1
{[%clk 0:01:20.9]} 18... Ned5 {[%clk 0:01:25.4]} 19. O-O {[%clk 0:01:16.3]}
19... g5 {[%clk 0:01:20.9]} 20. Bf5 {[%clk 0:01:13.2]} 20... Ne7 {[%clk
0:01:14.9]} 21. Be4 {[%clk 0:01:07]} 21... g4 {[%clk 0:01:11]} 22. Nxf4 {[%clk
0:00:46.9]} 22... Rg8 {[%clk 0:00:49.7]} 23. Ne6 {[%clk 0:00:43.6]} 23... gxf3+
{[%clk 0:00:48.8]} 24. Kh1 {[%clk 0:00:44]} 24... Nxe4 {[%clk 0:00:44.1]} 25.
dxe4 {[%clk 0:00:42.7]} 25... Rc8 {[%clk 0:00:17.5]} 26. Rxf3 {[%clk 0:00:37.5]}
26... Ng6 {[%clk 0:00:17.5]} 27. Rd3 {[%clk 0:00:33.6]} 27... Qb6 {[%clk
0:00:13.9]} 28. Rg3 {[%clk 0:00:18.5]} 28... Bd6 {[%clk 0:00:12.7]} 29. Rf1
{[%clk 0:00:18.4]} 29... Nf4 {[%clk 0:00:11.7]} 30. Rxg8 {[%clk 0:00:17.3]}
30... Rxg8 {[%clk 0:00:08.7]} 31. Nxf4 {[%clk 0:00:17.8]} 31... Rf8 {[%clk
0:00:08.9]} 32. Nd5 {[%clk 0:00:14.8]} 32... Rxf1+ {[%clk 0:00:06.7]} 33. Qxf1
{[%clk 0:00:15.7]} 33... Qc5 {[%clk 0:00:07]} 34. a4 {[%clk 0:00:10.7]} 34... a6
{[%clk 0:00:07.1]} 35. bxa6 {[%clk 0:00:09.8]} 35... bxa6 {[%clk 0:00:06.7]} 36.
Bc3 {[%clk 0:00:08.7]} 36... Qa3 {[%clk 0:00:04.7]} 37. Kg2 {[%clk 0:00:08.3]}
37... Qxa4 {[%clk 0:00:03.7]} 38. Qd3 {[%clk 0:00:05.3]} 38... Qd1 {[%clk
0:00:03.5]} 39. Ne3 {[%clk 0:00:05.5]} 39... Qh5 {[%clk 0:00:02.5]} 40. Nc4
{[%clk 0:00:05.2]} 40... Qg5+ {[%clk 0:00:02.6]} 41. Qg3 {[%clk 0:00:04.4]}
41... Qh5 {[%clk 0:00:01.8]} 42. Qf3 {[%clk 0:00:04]} 1-0

[Event "*** Titled Tuesday Blitz"]
[Site "Chess.com"]
[Date "2020.05.19"]
[Round "4"]
[White "Sam_ChessMood"]
[Black "EvgenyRomanov"]
[Result "1/2-1/2"]
[WhiteElo "2882"]
[BlackElo "2688"]
[TimeControl "180+1"]
[EndTime "12:41:13 PDT"]
[Termination "Game drawn by repetition"]

1. e4 {[%clk 0:03:00.9]} 1... c5 {[%clk 0:02:56.9]} 2. Nf3 {[%clk 0:03:00.6]}
2... a6 {[%clk 0:02:57.3]} 3. c3 {[%clk 0:02:51.5]} 3... d5 {[%clk 0:02:56.1]}
4. e5 {[%clk 0:02:46.2]} 4... Nc6 {[%clk 0:02:50.7]} 5. d4 {[%clk 0:02:45.8]}
5... Bg4 {[%clk 0:02:49.5]} 6. dxc5 {[%clk 0:02:31.1]} 6... e6 {[%clk
0:02:46.6]} 7. b4 {[%clk 0:02:29.2]} 7... Nxe5 {[%clk 0:02:37.9]} 8. Nbd2 {[%clk
0:02:25.8]} 8... Nxf3+ {[%clk 0:02:28.3]} 9. Nxf3 {[%clk 0:02:21.9]} 9... Bxf3
{[%clk 0:02:15.5]} 10. Qxf3 {[%clk 0:02:21]} 10... g6 {[%clk 0:02:15.1]} 11. h4
{[%clk 0:01:55.9]} 11... Bg7 {[%clk 0:02:12.3]} 12. h5 {[%clk 0:01:54]} 12...
Qf6 {[%clk 0:01:39.9]} 13. Qxf6 {[%clk 0:01:53.1]} 13... Bxf6 {[%clk 0:01:40]}
14. Bd2 {[%clk 0:01:40.8]} 14... Ne7 {[%clk 0:01:40]} 15. O-O-O {[%clk
0:01:32.6]} 15... a5 {[%clk 0:01:24.6]} 16. Bb5+ {[%clk 0:01:00.3]} 16... Nc6
{[%clk 0:01:24.6]} 17. a4 {[%clk 0:00:58.7]} 17... Ke7 {[%clk 0:01:20.3]} 18.
hxg6 {[%clk 0:00:47.5]} 18... hxg6 {[%clk 0:01:19.1]} 19. Bxc6 {[%clk
0:00:26.4]} 19... bxc6 {[%clk 0:01:18.3]} 20. Rxh8 {[%clk 0:00:22.5]} 20... Rxh8
{[%clk 0:01:09]} 21. b5 {[%clk 0:00:22.7]} 21... Rh4 {[%clk 0:00:48.5]} 22. f4
{[%clk 0:00:22.2]} 22... Kd7 {[%clk 0:00:44]} 23. c4 {[%clk 0:00:21.3]} 23...
Be7 {[%clk 0:00:32.2]} 24. cxd5 {[%clk 0:00:20.3]} 24... exd5 {[%clk 0:00:30.5]}
25. Be3 {[%clk 0:00:18.3]} 25... Rg4 {[%clk 0:00:26.7]} 26. Rd2 {[%clk
0:00:17.2]} 26... Rg3 {[%clk 0:00:25.2]} 27. Re2 {[%clk 0:00:17.6]} 27... Bf8
{[%clk 0:00:19]} 28. Kc2 {[%clk 0:00:16.9]} 28... Bg7 {[%clk 0:00:17.6]} 29. b6
{[%clk 0:00:16.9]} 29... Kc8 {[%clk 0:00:17.2]} 30. Bf2 {[%clk 0:00:14.9]} 30...
Rc3+ {[%clk 0:00:16.8]} 31. Kd2 {[%clk 0:00:15.1]} 31... Kd7 {[%clk 0:00:15.1]}
32. Re3 {[%clk 0:00:09.8]} 32... Rxe3 {[%clk 0:00:12.6]} 33. Bxe3 {[%clk
0:00:09.7]} 33... Kc8 {[%clk 0:00:11.8]} 34. Kd3 {[%clk 0:00:09.9]} 34... f5
{[%clk 0:00:11.3]} 35. Bd4 {[%clk 0:00:08]} 35... Bf8 {[%clk 0:00:11.9]} 36. Ke3
{[%clk 0:00:07.5]} 36... Be7 {[%clk 0:00:11.9]} 37. Kf3 {[%clk 0:00:07.8]} 37...
Bh4 {[%clk 0:00:11.6]} 38. g3 {[%clk 0:00:08]} 38... Be7 {[%clk 0:00:11.3]} 39.
Kg2 {[%clk 0:00:08.2]} 39... Bd8 {[%clk 0:00:10.8]} 40. Kh3 {[%clk 0:00:08.3]}
40... Be7 {[%clk 0:00:10.1]} 41. g4 {[%clk 0:00:08.4]} 41... Bd8 {[%clk
0:00:10.1]} 42. Kg3 {[%clk 0:00:08.7]} 42... Be7 {[%clk 0:00:09.8]} 43. Kf3
{[%clk 0:00:07.7]} 43... Bd8 {[%clk 0:00:09.6]} 44. g5 {[%clk 0:00:08]} 44...
Be7 {[%clk 0:00:09.3]} 45. Ke3 {[%clk 0:00:07.9]} 45... Kb7 {[%clk 0:00:09.5]}
46. Kd3 {[%clk 0:00:08]} 46... Bf8 {[%clk 0:00:09.6]} 47. Kc3 {[%clk 0:00:07.7]}
47... Be7 {[%clk 0:00:10]} 48. Kb3 {[%clk 0:00:07.9]} 48... Bf8 {[%clk
0:00:10.5]} 49. Kc3 {[%clk 0:00:08.2]} 49... Be7 {[%clk 0:00:11.3]} 50. Kd3
{[%clk 0:00:08.7]} 50... Bf8 {[%clk 0:00:12.2]} 51. Ke3 {[%clk 0:00:09]} 51...
Be7 {[%clk 0:00:12.7]} 52. Kd3 {[%clk 0:00:09.5]} 1/2-1/2

[Event "*** Titled Tuesday Blitz"]
[Site "Chess.com"]
[Date "2020.05.19"]
[Round "4"]
[White "Sanan_Sjugirov"]
[Black "m_ezat"]
[Result "1-0"]
[WhiteElo "2832"]
[BlackElo "2560"]
[TimeControl "180+1"]
[EndTime "12:41:13 PDT"]
[Termination "Sanan_Sjugirov won by checkmate"]

1. d4 {[%clk 0:03:00.9]} 1... Nf6 {[%clk 0:02:59.5]} 2. c4 {[%clk 0:03:00.9]}
2... g6 {[%clk 0:03:00]} 3. Nc3 {[%clk 0:03:00.6]} 3... Bg7 {[%clk 0:03:00.4]}
4. e4 {[%clk 0:03:00.6]} 4... O-O {[%clk 0:03:00.9]} 5. Nf3 {[%clk 0:03:00]}
5... d6 {[%clk 0:03:01.4]} 6. h3 {[%clk 0:02:59.3]} 6... e5 {[%clk 0:03:01.1]}
7. d5 {[%clk 0:02:59.3]} 7... a5 {[%clk 0:03:01.4]} 8. g4 {[%clk 0:02:57.7]}
8... Nfd7 {[%clk 0:03:00]} 9. Be3 {[%clk 0:02:56.3]} 9... Na6 {[%clk 0:02:57]}
10. a3 {[%clk 0:02:53.8]} 10... Nac5 {[%clk 0:02:48.1]} 11. Nd2 {[%clk
0:02:20.9]} 11... a4 {[%clk 0:02:42.5]} 12. Rg1 {[%clk 0:02:16]} 12... Kh8
{[%clk 0:02:40.5]} 13. Qc2 {[%clk 0:02:06.5]} 13... Nb6 {[%clk 0:02:06.3]} 14.
g5 {[%clk 0:01:55.5]} 14... f5 {[%clk 0:01:51.8]} 15. h4 {[%clk 0:01:53.5]}
15... Nbd7 {[%clk 0:01:31.8]} 16. f3 {[%clk 0:01:45.7]} 16... c6 {[%clk
0:01:27.7]} 17. Be2 {[%clk 0:01:30.5]} 17... Qa5 {[%clk 0:01:20.1]} 18. O-O-O
{[%clk 0:01:19.4]} 18... Nb6 {[%clk 0:01:04.4]} 19. Rh1 {[%clk 0:01:10.6]} 19...
Kg8 {[%clk 0:00:46.5]} 20. h5 {[%clk 0:01:08.6]} 20... Rf7 {[%clk 0:00:44.7]}
21. Rh2 {[%clk 0:00:53.9]} 21... Rc7 {[%clk 0:00:41.9]} 22. Kb1 {[%clk
0:00:47.3]} 22... Bd7 {[%clk 0:00:40.8]} 23. Rdh1 {[%clk 0:00:34.4]} 23... Rac8
{[%clk 0:00:39.3]} 24. hxg6 {[%clk 0:00:33.9]} 24... hxg6 {[%clk 0:00:38.4]} 25.
Qd1 {[%clk 0:00:17.5]} 25... cxd5 {[%clk 0:00:37]} 26. cxd5 {[%clk 0:00:17.5]}
26... Nb3 {[%clk 0:00:35.5]} 27. Nxb3 {[%clk 0:00:17.4]} 27... axb3 {[%clk
0:00:35.8]} 28. Bd2 {[%clk 0:00:07.7]} 28... Rxc3 {[%clk 0:00:32.3]} 29. Bxc3
{[%clk 0:00:07]} 29... Rxc3 {[%clk 0:00:32.1]} 30. bxc3 {[%clk 0:00:07.9]} 30...
Qxa3 {[%clk 0:00:20.2]} 31. Bd3 {[%clk 0:00:07.3]} 31... Na4 {[%clk 0:00:19.2]}
32. Qc1 {[%clk 0:00:06.6]} 32... b2 {[%clk 0:00:19.3]} 33. Rxb2 {[%clk
0:00:05.9]} 33... Nxc3+ {[%clk 0:00:19.4]} 34. Kc2 {[%clk 0:00:06.3]} 34... Ba4+
{[%clk 0:00:19.2]} 35. Kd2 {[%clk 0:00:06]} 35... fxe4 {[%clk 0:00:12.5]} 36.
fxe4 {[%clk 0:00:02.3]} 36... Nxd5 {[%clk 0:00:10.9]} 37. exd5 {[%clk
0:00:02.2]} 37... Bf8 {[%clk 0:00:09.9]} 38. Qc3 {[%clk 0:00:01.6]} 38... Bb3
{[%clk 0:00:09.1]} 39. Rxb3 {[%clk 0:00:01.7]} 39... Qa7 {[%clk 0:00:09.8]} 40.
Bc2 {[%clk 0:00:02.2]} 40... Qf2+ {[%clk 0:00:09.6]} 41. Kc1 {[%clk 0:00:03.1]}
41... e4 {[%clk 0:00:09.4]} 42. Kb1 {[%clk 0:00:04]} 42... Bg7 {[%clk
0:00:09.4]} 43. Qc8+ {[%clk 0:00:04.2]} 43... Kf7 {[%clk 0:00:09.6]} 44. Qe6+
{[%clk 0:00:04.7]} 44... Kf8 {[%clk 0:00:09.7]} 45. Qc8+ {[%clk 0:00:05.3]}
45... Kf7 {[%clk 0:00:09.7]} 46. Rxb7# {[%clk 0:00:05.9]} 1-0

[Event "*** Titled Tuesday Blitz"]
[Site "Chess.com"]
[Date "2020.05.19"]
[Round "4"]
[White "Funo09"]
[Black "vladislavkovalev"]
[Result "1-0"]
[WhiteElo "2732"]
[BlackElo "2898"]
[TimeControl "180+1"]
[EndTime "12:41:14 PDT"]
[Termination "Funo09 won by resignation"]

1. e4 {[%clk 0:03:00.9]} 1... e5 {[%clk 0:02:59.7]} 2. Nf3 {[%clk 0:03:00.6]}
2... Nc6 {[%clk 0:03:00.4]} 3. Bb5 {[%clk 0:03:00.6]} 3... a6 {[%clk 0:03:00.7]}
4. Ba4 {[%clk 0:03:00.9]} 4... Nf6 {[%clk 0:03:01.4]} 5. O-O {[%clk 0:03:01.1]}
5... Be7 {[%clk 0:03:02]} 6. Re1 {[%clk 0:03:00.7]} 6... b5 {[%clk 0:03:02.7]}
7. Bb3 {[%clk 0:03:01.2]} 7... d6 {[%clk 0:03:03.4]} 8. c3 {[%clk 0:03:01.4]}
8... O-O {[%clk 0:03:04.1]} 9. d4 {[%clk 0:03:01.9]} 9... Bg4 {[%clk 0:03:03.9]}
10. Be3 {[%clk 0:03:02.1]} 10... exd4 {[%clk 0:03:04.3]} 11. cxd4 {[%clk
0:03:01.4]} 11... Na5 {[%clk 0:03:05]} 12. h3 {[%clk 0:03:01.2]} 12... Bh5
{[%clk 0:03:02.1]} 13. Nbd2 {[%clk 0:03:00.9]} 13... c5 {[%clk 0:02:58.3]} 14.
g4 {[%clk 0:02:58.8]} 14... Bg6 {[%clk 0:02:53.1]} 15. Nh4 {[%clk 0:02:59.1]}
15... Nxb3 {[%clk 0:02:42.2]} 16. axb3 {[%clk 0:02:57.2]} 16... Re8 {[%clk
0:02:01.2]} 17. Nxg6 {[%clk 0:02:45.7]} 17... hxg6 {[%clk 0:02:02.1]} 18. Kg2
{[%clk 0:02:44.8]} 18... cxd4 {[%clk 0:01:57.6]} 19. Bxd4 {[%clk 0:02:44.7]}
19... Nd7 {[%clk 0:01:58.4]} 20. Nf3 {[%clk 0:02:32.8]} 20... Qc7 {[%clk
0:01:49.8]} 21. Bc3 {[%clk 0:01:51.9]} 21... Qb7 {[%clk 0:01:46.8]} 22. Qd4
{[%clk 0:01:51.3]} 22... Bf8 {[%clk 0:01:39.5]} 23. b4 {[%clk 0:01:41.2]} 23...
Nf6 {[%clk 0:01:33.7]} 24. Nd2 {[%clk 0:01:26.6]} 24... Re6 {[%clk 0:01:28.3]}
25. Re3 {[%clk 0:01:24.8]} 25... Rae8 {[%clk 0:01:28.4]} 26. Rae1 {[%clk
0:01:25.3]} 26... g5 {[%clk 0:01:21.7]} 27. Qd3 {[%clk 0:01:07.2]} 27... d5
{[%clk 0:01:16.2]} 28. Bxf6 {[%clk 0:01:05.5]} 28... dxe4 {[%clk 0:01:09.2]} 29.
Nxe4 {[%clk 0:00:59.6]} 29... Rxf6 {[%clk 0:01:08.2]} 30. Kg1 {[%clk 0:00:43.4]}
30... Rc8 {[%clk 0:00:52]} 31. Nxf6+ {[%clk 0:00:34.1]} 31... gxf6 {[%clk
0:00:52.9]} 32. Qe4 {[%clk 0:00:31.9]} 32... Qb8 {[%clk 0:00:45.1]} 33. Qd4
{[%clk 0:00:29.4]} 33... Kg7 {[%clk 0:00:43.1]} 34. Rf3 {[%clk 0:00:27.8]} 34...
Qd6 {[%clk 0:00:39.6]} 35. Qxd6 {[%clk 0:00:25.7]} 35... Bxd6 {[%clk 0:00:40.5]}
36. Ra1 {[%clk 0:00:25.8]} 36... Be5 {[%clk 0:00:29.3]} 37. Rxa6 {[%clk
0:00:24.8]} 37... Rc4 {[%clk 0:00:29.9]} 38. b3 {[%clk 0:00:23.3]} 38... Rxb4
{[%clk 0:00:27.8]} 39. Rb6 {[%clk 0:00:23.4]} 39... Kg6 {[%clk 0:00:24.2]} 40.
Kg2 {[%clk 0:00:23.7]} 40... Bd4 {[%clk 0:00:20.7]} 41. Rb7 {[%clk 0:00:19.8]}
41... Be5 {[%clk 0:00:21.1]} 42. Rd3 {[%clk 0:00:19.6]} 42... Bd4 {[%clk
0:00:17.3]} 43. Kf1 {[%clk 0:00:17.8]} 43... f5 {[%clk 0:00:12.1]} 44. gxf5+
{[%clk 0:00:16.3]} 44... Kxf5 {[%clk 0:00:13]} 45. Rxf7+ {[%clk 0:00:16.2]}
45... Kg6 {[%clk 0:00:10.7]} 46. Rb7 {[%clk 0:00:16]} 46... Kf5 {[%clk
0:00:08.3]} 47. Kg2 {[%clk 0:00:16.3]} 47... Ke4 {[%clk 0:00:06.2]} 48. Rg3
{[%clk 0:00:16.5]} 48... Be5 {[%clk 0:00:04.7]} 49. Rxg5 {[%clk 0:00:15.1]}
49... Bf4 {[%clk 0:00:05.2]} 50. Rgxb5 {[%clk 0:00:14.4]} 1-0

[Event "*** Titled Tuesday Blitz"]
[Site "Chess.com"]
[Date "2020.05.19"]
[Round "4"]
[White "Pavel_Mir"]
[Black "vpantev"]
[Result "0-1"]
[WhiteElo "2190"]
[BlackElo "2556"]
[TimeControl "180+1"]
[EndTime "12:41:18 PDT"]
[Termination "vpantev won on time"]

1. e4 {[%clk 0:03:00.9]} 1... c6 {[%clk 0:02:58.8]} 2. d4 {[%clk 0:02:59.7]}
2... d5 {[%clk 0:02:59.1]} 3. e5 {[%clk 0:02:59.3]} 3... Bf5 {[%clk 0:02:58.6]}
4. Nf3 {[%clk 0:02:57.4]} 4... e6 {[%clk 0:02:58.1]} 5. Be2 {[%clk 0:02:57.6]}
5... Ne7 {[%clk 0:02:57.8]} 6. O-O {[%clk 0:02:58.1]} 6... Bg6 {[%clk 0:02:58]}
7. c3 {[%clk 0:02:55.5]} 7... Nf5 {[%clk 0:02:57.7]} 8. Nbd2 {[%clk 0:02:54.5]}
8... c5 {[%clk 0:02:57.6]} 9. dxc5 {[%clk 0:02:51.7]} 9... Bxc5 {[%clk
0:02:55.9]} 10. Nb3 {[%clk 0:02:50.9]} 10... Bb6 {[%clk 0:02:55.6]} 11. Bg5
{[%clk 0:02:45.7]} 11... Qd7 {[%clk 0:02:50.5]} 12. Nfd4 {[%clk 0:02:39.3]}
12... O-O {[%clk 0:02:44.9]} 13. a4 {[%clk 0:02:33]} 13... Nxd4 {[%clk 0:02:44]}
14. cxd4 {[%clk 0:02:23.7]} 14... a6 {[%clk 0:02:42.1]} 15. a5 {[%clk 0:02:21]}
15... Ba7 {[%clk 0:02:42.2]} 16. Rc1 {[%clk 0:02:04.9]} 16... h6 {[%clk
0:02:41.2]} 17. Bd2 {[%clk 0:01:59.1]} 17... Nc6 {[%clk 0:02:40.6]} 18. Be3
{[%clk 0:01:43.7]} 18... Rac8 {[%clk 0:02:35.4]} 19. Nc5 {[%clk 0:01:35.5]}
19... Qe7 {[%clk 0:02:31.9]} 20. Qd2 {[%clk 0:01:27.4]} 20... Nxe5 {[%clk
0:02:20.9]} 21. Nxe6 {[%clk 0:00:22.7]} 21... fxe6 {[%clk 0:02:12.9]} 22. dxe5
{[%clk 0:00:22.6]} 22... d4 {[%clk 0:02:13]} 23. Bxd4 {[%clk 0:00:18.8]} 23...
Rcd8 {[%clk 0:02:02.3]} 24. Rc4 {[%clk 0:00:11.9]} 24... Rd5 {[%clk 0:01:52.8]}
25. Qc3 {[%clk 0:00:10.6]} 25... Bxd4 {[%clk 0:01:44.9]} 26. Rxd4 {[%clk
0:00:10.7]} 26... Rxe5 {[%clk 0:01:40]} 27. Bf3 {[%clk 0:00:11]} 27... Rc5
{[%clk 0:01:34.4]} 28. Qe3 {[%clk 0:00:09.7]} 28... e5 {[%clk 0:01:29.4]} 29. b4
{[%clk 0:00:08.4]} 29... Rc7 {[%clk 0:01:27.8]} 30. Rg4 {[%clk 0:00:08]} 30...
Bh5 {[%clk 0:01:18]} 31. Bd5+ {[%clk 0:00:08.1]} 31... Bf7 {[%clk 0:01:15.6]}
32. Be4 {[%clk 0:00:05.8]} 32... Qf6 {[%clk 0:01:10.9]} 33. Rg3 {[%clk
0:00:05.3]} 33... Be6 {[%clk 0:01:06.8]} 34. h3 {[%clk 0:00:05.5]} 34... Qf4
{[%clk 0:00:59.9]} 35. Qd3 {[%clk 0:00:04.6]} 35... Rd7 {[%clk 0:00:58.7]} 36.
Qb1 {[%clk 0:00:04.2]} 36... Rd4 {[%clk 0:00:56.9]} 37. Bh7+ {[%clk 0:00:02.5]}
37... Kh8 {[%clk 0:00:56.2]} 38. Rf3 {[%clk 0:00:03.2]} 38... Rxb4 {[%clk
0:00:47.6]} 39. Rxf4 {[%clk 0:00:02.8]} 39... Rfxf4 {[%clk 0:00:45.8]} 40. Qc2
{[%clk 0:00:03.2]} 40... Rbc4 {[%clk 0:00:44]} 41. Qg6 {[%clk 0:00:03.2]} 41...
Rf6 {[%clk 0:00:41.4]} 42. Qe8+ {[%clk 0:00:02.9]} 42... Kxh7 {[%clk 0:00:41.2]}
43. Re1 {[%clk 0:00:03.6]} 43... e4 {[%clk 0:00:38]} 44. Qd8 {[%clk 0:00:03.3]}
44... Bf5 {[%clk 0:00:34.5]} 45. Qd5 {[%clk 0:00:02.8]} 45... Rcc6 {[%clk
0:00:33.1]} 46. Qd4 {[%clk 0:00:02.5]} 46... Rcd6 {[%clk 0:00:32.6]} 47. Qe3
{[%clk 0:00:02.7]} 47... Rfe6 {[%clk 0:00:32.3]} 48. h4 {[%clk 0:00:02.9]} 48...
Bg6 {[%clk 0:00:32]} 49. Qf4 {[%clk 0:00:02.9]} 49... Rf6 {[%clk 0:00:31.5]} 50.
Qg4 {[%clk 0:00:03.2]} 50... Rd5 {[%clk 0:00:30.5]} 51. Qg3 {[%clk 0:00:02.3]}
51... Rxa5 {[%clk 0:00:29.5]} 52. Qc7 {[%clk 0:00:02.2]} 52... Rb5 {[%clk
0:00:27.9]} 53. Rd1 {[%clk 0:00:02.6]} 53... Rbf5 {[%clk 0:00:25.6]} 54. Rd7
{[%clk 0:00:02.3]} 54... Rf7 {[%clk 0:00:24.9]} 55. Qxb7 {[%clk 0:00:02.8]}
55... Rxf2 {[%clk 0:00:23.8]} 0-1